[Event "ONJK-B 2019"]
[Site "Borne"]
[Date "2019.08.05"]
[Round "1.1"]
[White "Maters, Arthur"]
[Black "Tiggelman, Laura"]
[Result "1-0"]
[ECO "B76"]
[WhiteElo "2041"]
[BlackElo "1436"]
[Annotator "NA"]
[PlyCount "69"]
[EventDate "2019.08.05"]
[EventType "swiss"]
[EventCountry "NED"]
[SourceTitle "playchess.com"]
[Source "ChessBase"]
[SourceQuality "1"]
[TimeControl "5400+30"]

1. e4 {[%emt 0:00:00]} c5 {[%emt 0:00:00]} 2. Nf3 {[%emt 0:00:00]} d6 {[%emt 0:00:00]} 3. d4 {[%emt 0:00:00]} cxd4 {[%emt 0:00:00]} 4. Nxd4 {[%emt 0:00:00]} Nf6 {[%emt 0:00:00]} 5. Nc3 {[%emt 0:00:00]} g6 {[%emt 0:00:00]} 6. Be3 {[%emt 0:00:00]} Bg7 {[%emt 0:00:23]} 7. f3 {[%emt 0:00:00]} O-O {[%emt 0:00:10]} 8. Qd2 {[%emt 0:00:03]} Nc6 {[%emt 0:00:07]} 9. O-O-O {[%emt 0:00:05]} d5 {[%emt 0:00:06]} 10. Nxc6 {[%emt 0:00:03]} bxc6 {[%emt 0:00:07]} 11. Bh6 {[%emt 0:00:03]} Qc7 {[%emt 0:19:22]} 12. exd5 {[%emt 0:00:11]} cxd5 {[%emt 0:00:09]} 13. Bxg7 {[%emt 0:01:09]} Kxg7 {[%emt 0:00:15]} 14. h4 {[%emt 0:00:16]} Bb7 {[%emt 0:23:02]} 15. h5 {[%emt 0:08:57]} e5 {[%emt 0:08:12]} 16. hxg6 {[%emt 0:02:10]} fxg6 {[%emt 0:04:41]} 17. Bd3 {[%emt 0:07:20]} e4 {[%emt 0:09:28]} 18. fxe4 {[%emt 0:01:11]} dxe4 {[%emt 0:00:26]} 19. Bb5 {[%emt 0:03:10]} Rad8 {[%emt 0:05:16]} 20. Qh6+ {[%emt 0:01:53]} Kg8 {[%emt 0:00:25]} 21. Rdf1 {[%emt 0:00:28]} Nh5 {[%emt 0:16:38]} 22. g4 {[%emt 0:02:49]} Rxf1+ {[%emt 0:01:07]} 23. Rxf1 {[%emt 0:00:08]} Ng3 {[%emt 0:00:19]} 24. Qh2 {[%emt 0:01:33]} Rc8 {[%emt 0:07:34]} 25. Rg1 {[%emt 0:01:17]} a6 {[%emt 0:01:55]} 26. Ba4 {[%emt 0:00:27]} Qf4+ {[%emt 0:02:04]} 27. Kb1 {[%emt 0:00:07]} e3 {[%emt 0:00:44]} 28. Qxg3 {[%emt 0:00:22]} Qb4 {[%emt 0:00:30]} 29. Bb3+ {[%emt 0:00:08]} Kf8 {[%emt 0:00:31]} 30. Rf1+ {[%emt 0:00:18]} Ke8 {[%emt 0:00:35]} 31. Qe5+ {[%emt 0:00:32]} Qe7 {[%emt 0:00:30]} 32. Rf8+ {[%emt 0:00:06]} Kd7 {[%emt 0:00:18]} 33. Ba4+ {[%emt 0:00:14]} Bc6 {[%emt 0:00:09]} 34. Qd5+ {[%emt 0:00:27]} Qd6 {[%emt 0:00:24]} 35. Rf7+ {[%emt 0:00:03]} 1-0

[Event "ONJK-B 2019"]
[Site "Borne"]
[Date "2019.08.05"]
[Round "1.2"]
[White "Olree, Alex"]
[Black "Mainka, Alwin"]
[Result "0-1"]
[ECO "D70"]
[WhiteElo "1411"]
[BlackElo "1989"]
[Annotator "NA"]
[PlyCount "66"]
[EventDate "2019.08.05"]
[EventType "swiss"]
[EventCountry "NED"]
[SourceTitle "playchess.com"]
[Source "ChessBase"]
[SourceQuality "1"]
[TimeControl "5400+30"]

1. d4 {[%emt 0:00:00]} Nf6 {[%emt 0:00:00]} 2. c4 {[%emt 0:00:00]} g6 {[%emt 0:00:00]} 3. f3 {[%emt 0:00:00]} d5 {[%emt 0:00:00]} 4. cxd5 {[%emt 0:00:00]} Nxd5 {[%emt 0:00:02]} 5. e4 {[%emt 0:00:00]} Nb6 {[%emt 0:00:10]} 6. Nc3 {[%emt 0:01:01]} Bg7 {[%emt 0:00:28]} 7. Be3 {[%emt 0:00:12]} Nc6 {[%emt 0:00:53]} 8. Bb5 {[%emt 0:05:06]} O-O {[%emt 0:00:38]} 9. Nge2 {[%emt 0:03:33]} e5 {[%emt 0:03:26]} 10. d5 {[%emt 0:05:12]} Ne7 {[%emt 0:00:11]} 11. Qc2 {[%emt 0:03:11]} c6 {[%emt 0:06:27]} 12. dxc6 {[%emt 0:03:31]} bxc6 {[%emt 0:00:08]} 13. Rd1 {[%emt 0:02:03]} Bd7 {[%emt 0:01:20]} 14. Ba4 {[%emt 0:04:05]} Qc8 {[%emt 0:02:59]} 15. Bc5 {[%emt 0:06:02]} Re8 {[%emt 0:00:17]} 16. O-O {[%emt 0:02:27]} Qb7 {[%emt 0:03:14]} 17. Bb3 {[%emt 0:06:34]} Nec8 {[%emt 0:02:23]} 18. Rd3 {[%emt 0:01:22]} Bf8 {[%emt 0:02:40]} 19. Bxf8 {[%emt 0:20:46]} Rxf8 {[%emt 0:00:10]} 20. Rfd1 {[%emt 0:01:31]} a5 {[%emt 0:02:46]} 21. Qd2 {[%emt 0:15:51]} Ra7 {[%emt 0:07:21]} 22. Qg5 {[%emt 0:03:59]} Qc7 {[%emt 0:03:13]} 23. Rc1 {[%emt 0:01:45]} Qb8 {[%emt 0:00:19]} 24. a3 {[%emt 0:03:46]} c5 {[%emt 0:04:25]} 25. Nd5 {[%emt 0:04:16]} Nxd5 {[%emt 0:00:31]} 26. Bxd5 {[%emt 0:00:12]} Qxb2 {[%emt 0:00:59]} 27. Ng3 {[%emt 0:00:14]} Qb6 {[%emt 0:04:04]} 28. Qxe5 {[%emt 0:01:43]} c4+ {[%emt 0:00:45]} 29. Rd4 {[%emt 0:00:28]} Re8 {[%emt 0:01:17]} 30. Bxf7+ {[%emt 0:01:45]} Kxf7 {[%emt 0:00:15]} 31. Qf4+ {[%emt 0:00:04]} Kg8 {[%emt 0:00:44]} 32. Rcxc4 {[%emt 0:00:02]} Bb5 {[%emt 0:01:01]} 33. Kf1 {[%emt 0:01:33]} Qxd4 {[%emt 0:00:39]} 0-1

[Event "ONJK-B 2019"]
[Site "Borne"]
[Date "2019.08.05"]
[Round "1.3"]
[White "Albertus, Bram"]
[Black "Van Hille, Clara"]
[Result "1/2-1/2"]
[ECO "A14"]
[WhiteElo "1841"]
[BlackElo "1391"]
[Annotator "NA"]
[PlyCount "100"]
[EventDate "2019.08.05"]
[EventType "swiss"]
[EventCountry "NED"]
[SourceTitle "playchess.com"]
[Source "ChessBase"]
[SourceQuality "1"]
[TimeControl "5400+30"]

1. c4 {[%emt 0:00:00]} e6 {[%emt 0:00:00]} 2. g3 {[%emt 0:00:00]} d5 {[%emt 0:00:00]} 3. Bg2 {[%emt 0:00:40]} Nf6 {[%emt 0:00:20]} 4. Nf3 {[%emt 0:00:18]} Be7 {[%emt 0:00:40]} 5. d4 {[%emt 0:00:54]} O-O {[%emt 0:00:41]} 6. O-O {[%emt 0:00:21]} b6 {[%emt 0:04:00]} 7. Nbd2 {[%emt 0:01:34]} Bb7 {[%emt 0:00:39]} 8. e3 {[%emt 0:01:24]} c5 {[%emt 0:02:50]} 9. b3 {[%emt 0:02:13]} Nc6 {[%emt 0:04:17]} 10. Bb2 {[%emt 0:01:24]} Rc8 {[%emt 0:02:08]} 11. Ne5 {[%emt 0:08:00]} Nd7 {[%emt 0:19:00]} 12. cxd5 {[%emt 0:27:37]} Ndxe5 {[%emt 0:00:25]} 13. dxe5 {[%emt 0:17:08]} exd5 {[%emt 0:00:54]} 14. Nb1 {[%emt 0:01:40]} Na5 {[%emt 0:09:08]} 15. Qd2 {[%emt 0:04:02]} Qd7 {[%emt 0:06:24]} 16. Rd1 {[%emt 0:02:20]} Rfd8 {[%emt 0:01:10]} 17. Nc3 {[%emt 0:02:56]} d4 {[%emt 0:01:17]} 18. Ne4 {[%emt 0:13:01]} Nc6 {[%emt 0:09:06]} 19. f4 {[%emt 0:00:56]} Qf5 {[%emt 0:08:26]} 20. Qd3 {[%emt 0:02:02]} Qd7 {[%emt 0:05:35]} 21. a3 {[%emt 0:01:42]} Qe6 {[%emt 0:06:01]} 22. Nf2 {[%emt 0:02:57]} dxe3 {[%emt 0:05:05]} 23. Qxe3 {[%emt 0:00:00]} Rxd1+ {[%emt 0:00:56]} 24. Rxd1 {[%emt 0:00:02]} Rd8 {[%emt 0:00:27]} 25. Rxd8+ {[%emt 0:01:01]} Bxd8 {[%emt 0:00:05]} 26. Qd3 {[%emt 0:00:49]} Bc7 {[%emt 0:03:16]} 27. f5 {[%emt 0:04:29]} Qe7 {[%emt 0:02:01]} 28. f6 {[%emt 0:01:35]} gxf6 {[%emt 0:01:06]} 29. exf6 {[%emt 0:00:02]} Qe1+ {[%emt 0:02:55]} 30. Bf1 {[%emt 0:00:33]} Ne5 {[%emt 0:01:21]} 31. Bxe5 {[%emt 0:01:15]} Qxe5 {[%emt 0:01:07]} 32. Qd7 {[%emt 0:01:01]} Kf8 {[%emt 0:00:45]} 33. b4 {[%emt 0:01:39]} Qd6 {[%emt 0:01:35]} 34. Qxd6+ {[%emt 0:00:51]} Bxd6 {[%emt 0:00:07]} 35. b5 {[%emt 0:00:32]} Ke8 {[%emt 0:00:47]} 36. Bc4 {[%emt 0:00:25]} Bf3 {[%emt 0:01:03]} 37. Nh3 {[%emt 0:00:35]} Be4 {[%emt 0:00:27]} 38. Ng5 {[%emt 0:00:27]} Bg6 {[%emt 0:00:06]} 39. Nf3 {[%emt 0:00:25]} Be4 {[%emt 0:01:01]} 40. Ng5 {[%emt 0:00:26]} Bg6 {[%emt 0:00:04]} 41. Nf3 {[%emt 0:00:39]} Be4 {[%emt 0:00:04]} 42. Ng5 {[%emt 0:00:29]} Bg6 {[%emt 0:00:06]} 43. g4 {[%emt 0:00:29]} Be5 {[%emt 0:01:18]} 44. h4 {[%emt 0:00:34]} Bxf6 {[%emt 0:00:25]} 45. Nf3 {[%emt 0:00:15]} Be4 {[%emt 0:02:25]} 46. Nd2 {[%emt 0:00:08]} Bd4+ {[%emt 0:00:05]} 47. Kh2 {[%emt 0:00:30]} Bb7 {[%emt 0:01:07]} 48. Kg3 {[%emt 0:00:22]} Be5+ {[%emt 0:00:16]} 49. Kf2 {[%emt 0:00:13]} Bc8 {[%emt 0:00:36]} 50. Kf3 {[%emt 0:00:47]} Bb7+ {[%emt 0:00:16]} 1/2-1/2

[Event "ONJK-B 2019"]
[Site "Borne"]
[Date "2019.08.05"]
[Round "1.4"]
[White "Visser, Barto"]
[Black "Klaren, Oscar"]
[Result "0-1"]
[ECO "B23"]
[WhiteElo "1342"]
[BlackElo "1737"]
[Annotator "NA"]
[PlyCount "48"]
[EventDate "2019.08.05"]
[EventType "swiss"]
[EventCountry "NED"]
[SourceTitle "playchess.com"]
[Source "ChessBase"]
[SourceQuality "1"]
[TimeControl "5400+30"]

1. e4 {[%emt 0:00:00]} c5 {[%emt 0:00:00]} 2. Nc3 {[%emt 0:00:00]} Nc6 {[%emt 0:00:00]} 3. f4 {[%emt 0:00:08]} e6 {[%emt 0:00:00]} 4. Bc4 {[%emt 0:01:28]} Nge7 {[%emt 0:00:30]} 5. Nf3 {[%emt 0:00:54]} g6 {[%emt 0:00:16]} 6. O-O {[%emt 0:01:26]} Bg7 {[%emt 0:00:12]} 7. d3 {[%emt 0:01:08]} O-O {[%emt 0:00:37]} 8. Qe1 {[%emt 0:01:51]} Nd4 {[%emt 0:01:43]} 9. Bb3 {[%emt 0:03:57]} a6 {[%emt 0:06:46]} 10. a4 {[%emt 0:01:45]} d5 {[%emt 0:05:33]} 11. Qh4 {[%emt 0:07:59]} c4 {[%emt 0:09:43]} 12. dxc4 {[%emt 0:02:50]} dxc4 {[%emt 0:00:11]} 13. Bxc4 {[%emt 0:00:37]} Nxf3+ {[%emt 0:01:28]} 14. Rxf3 {[%emt 0:01:09]} f5 {[%emt 0:07:56]} 15. Rd3 {[%emt 0:05:39]} Qc7 {[%emt 0:06:29]} 16. Bb3 {[%emt 0:03:53]} fxe4 {[%emt 0:02:39]} 17. Nxe4 {[%emt 0:01:11]} Nf5 {[%emt 0:00:15]} 18. Qh3 {[%emt 0:03:03]} h6 {[%emt 0:13:49]} 19. Qg4 {[%emt 0:05:44]} Nd4 {[%emt 0:07:15]} 20. Be3 {[%emt 0:03:37]} Nxb3 {[%emt 0:01:22]} 21. cxb3 {[%emt 0:01:14]} e5 {[%emt 0:00:49]} 22. Qxg6 {[%emt 0:00:49]} Bf5 {[%emt 0:00:15]} 23. Rc1 {[%emt 0:02:17]} Qxc1+ {[%emt 0:00:15]} 24. Bxc1 {[%emt 0:00:16]} Bxg6 {[%emt 0:00:06]} 0-1

[Event "ONJK-B 2019"]
[Site "Borne"]
[Date "2019.08.05"]
[Round "1.5"]
[White "Rogge, Parcival"]
[Black "Decruyenaere, Laura"]
[Result "1-0"]
[ECO "C54"]
[WhiteElo "1743"]
[BlackElo "1382"]
[Annotator "NA"]
[PlyCount "71"]
[EventDate "2019.08.05"]
[EventType "swiss"]
[EventCountry "NED"]
[SourceTitle "playchess.com"]
[Source "ChessBase"]
[SourceQuality "1"]
[TimeControl "5400+30"]

1. e4 {[%emt 0:00:00]} e5 {[%emt 0:00:00]} 2. Nf3 {[%emt 0:00:00]} Nc6 {[%emt 0:00:00]} 3. Bc4 {[%emt 0:00:00]} Nf6 {[%emt 0:00:00]} 4. d3 {[%emt 0:00:00]} h6 {[%emt 0:00:05]} 5. c3 {[%emt 0:00:23]} Bc5 {[%emt 0:00:53]} 6. b4 {[%emt 0:04:23]} Bb6 {[%emt 0:01:46]} 7. b5 {[%emt 0:10:23]} Na5 {[%emt 0:10:01]} 8. Nxe5 {[%emt 0:00:25]} Nxc4 {[%emt 0:00:16]} 9. Nxc4 {[%emt 0:00:14]} d6 {[%emt 0:00:43]} 10. a4 {[%emt 0:01:11]} c6 {[%emt 0:08:29]} 11. O-O {[%emt 0:04:42]} O-O {[%emt 0:03:14]} 12. Ba3 {[%emt 0:11:51]} Bc7 {[%emt 0:03:46]} 13. e5 {[%emt 0:00:44]} Ne8 {[%emt 0:03:10]} 14. d4 {[%emt 0:02:44]} Be6 {[%emt 0:06:48]} 15. Nbd2 {[%emt 0:01:02]} Qd7 {[%emt 0:24:26]} 16. f4 {[%emt 0:10:08]} Bg4 {[%emt 0:07:08]} 17. Qe1 {[%emt 0:00:59]} Rd8 {[%emt 0:04:35]} 18. h3 {[%emt 0:01:29]} Bf5 {[%emt 0:00:51]} 19. Rf3 {[%emt 0:01:25]} Qe6 {[%emt 0:02:59]} 20. g4 {[%emt 0:00:35]} Bh7 {[%emt 0:02:53]} 21. f5 {[%emt 0:00:11]} Qc8 {[%emt 0:01:20]} 22. Qh4 {[%emt 0:00:43]} Rd7 {[%emt 0:04:52]} 23. Raf1 {[%emt 0:03:15]} Qd8 {[%emt 0:01:22]} 24. Qf2 {[%emt 0:01:09]} Bb8 {[%emt 0:05:12]} 25. Ne4 {[%emt 0:04:51]} Kh8 {[%emt 0:01:55]} 26. Nexd6 {[%emt 0:01:15]} Nxd6 {[%emt 0:00:34]} 27. Nxd6 {[%emt 0:00:09]} Bxd6 {[%emt 0:01:23]} 28. Bxd6 {[%emt 0:00:07]} Re8 {[%emt 0:00:15]} 29. f6 {[%emt 0:00:50]} g6 {[%emt 0:01:44]} 30. Qh4 {[%emt 0:00:28]} Rg8 {[%emt 0:02:41]} 31. Be7 {[%emt 0:00:47]} Qc8 {[%emt 0:01:11]} 32. Qxh6 {[%emt 0:00:13]} Qb8 {[%emt 0:00:32]} 33. g5 {[%emt 0:00:11]} cxb5 {[%emt 0:00:18]} 34. Rf4 {[%emt 0:00:12]} bxa4 {[%emt 0:00:42]} 35. Rh4 {[%emt 0:00:09]} a3 {[%emt 0:00:24]} 36. Qxh7# {[%emt 0:00:07]} 1-0

[Event "ONJK-B 2019"]
[Site "Borne"]
[Date "2019.08.05"]
[Round "1.6"]
[White "Lauwers, Timo"]
[Black "Baselmans, Daan"]
[Result "0-1"]
[ECO "A48"]
[WhiteElo "1364"]
[BlackElo "1720"]
[Annotator "NA"]
[PlyCount "96"]
[EventDate "2019.08.05"]
[EventType "swiss"]
[EventCountry "NED"]
[SourceTitle "playchess.com"]
[Source "ChessBase"]
[SourceQuality "1"]
[TimeControl "5400+30"]

1. d4 {[%emt 0:00:00]} Nf6 {[%emt 0:00:00]} 2. Nf3 {[%emt 0:00:00]} g6 {[%emt 0:00:00]} 3. Bf4 {[%emt 0:00:00]} d6 {[%emt 0:00:00]} 4. e3 {[%emt 0:00:08]} Bg7 {[%emt 0:00:00]} 5. Bd3 {[%emt 0:00:33]} O-O {[%emt 0:00:03]} 6. Nbd2 {[%emt 0:03:07]} Nbd7 {[%emt 0:00:46]} 7. Nb3 {[%emt 0:05:27]} Qe8 {[%emt 0:02:03]} 8. Nfd2 {[%emt 0:04:11]} e5 {[%emt 0:02:08]} 9. dxe5 {[%emt 0:04:30]} dxe5 {[%emt 0:00:35]} 10. Bg3 {[%emt 0:01:04]} e4 {[%emt 0:06:04]} 11. Be2 {[%emt 0:01:56]} Qd8 {[%emt 0:19:18]} 12. h4 {[%emt 0:05:04]} h5 {[%emt 0:01:42]} 13. Bf4 {[%emt 0:01:05]} b6 {[%emt 0:01:15]} 14. g4 {[%emt 0:09:49]} hxg4 {[%emt 0:02:09]} 15. Bxg4 {[%emt 0:02:43]} Nxg4 {[%emt 0:00:39]} 16. Qxg4 {[%emt 0:00:15]} Bxb2 {[%emt 0:04:03]} 17. Rb1 {[%emt 0:04:05]} Bc3 {[%emt 0:00:16]} 18. Bh6 {[%emt 0:04:00]} Nc5 {[%emt 0:05:38]} 19. Qe2 {[%emt 0:04:14]} Nxb3 {[%emt 0:01:56]} 20. Rxb3 {[%emt 0:00:54]} Qxd2+ {[%emt 0:00:51]} 21. Qxd2 {[%emt 0:01:05]} Bxd2+ {[%emt 0:00:06]} 22. Kxd2 {[%emt 0:00:06]} Rd8+ {[%emt 0:00:09]} 23. Kc1 {[%emt 0:00:10]} Bg4 {[%emt 0:00:46]} 24. Rb4 {[%emt 0:01:35]} Bf3 {[%emt 0:01:21]} 25. Rg1 {[%emt 0:00:36]} c5 {[%emt 0:00:13]} 26. Rb1 {[%emt 0:01:32]} Rd5 {[%emt 0:00:32]} 27. Bg5 {[%emt 0:01:22]} Kg7 {[%emt 0:00:46]} 28. Kb2 {[%emt 0:00:35]} Rd2 {[%emt 0:00:45]} 29. Rgf1 {[%emt 0:03:54]} f6 {[%emt 0:01:10]} 30. Bf4 {[%emt 0:00:26]} Rad8 {[%emt 0:00:17]} 31. Bg3 {[%emt 0:00:35]} b5 {[%emt 0:03:12]} 32. a3 {[%emt 0:03:48]} R8d7 {[%emt 0:00:50]} 33. Kc3 {[%emt 0:02:32]} Be2 {[%emt 0:08:25]} 34. Rfe1 {[%emt 0:02:26]} a5 {[%emt 0:01:50]} 35. Rxe2 {[%emt 0:04:18]} Rxe2 {[%emt 0:00:07]} 36. Rxb5 {[%emt 0:00:04]} Rdd2 {[%emt 0:02:15]} 37. Rb2 {[%emt 0:02:26]} a4 {[%emt 0:00:46]} 38. Ra2 {[%emt 0:01:51]} Kf7 {[%emt 0:01:02]} 39. Rb2 {[%emt 0:00:09]} Ke6 {[%emt 0:00:11]} 40. Rb6+ {[%emt 0:00:27]} Kf5 {[%emt 0:00:42]} 41. Rb2 {[%emt 0:00:30]} Kg4 {[%emt 0:01:13]} 42. Ra2 {[%emt 0:00:41]} g5 {[%emt 0:00:32]} 43. hxg5 {[%emt 0:00:42]} fxg5 {[%emt 0:00:12]} 44. Rb2 {[%emt 0:00:06]} Kf3 {[%emt 0:00:17]} 45. Ra2 {[%emt 0:01:04]} Rxf2 {[%emt 0:00:55]} 46. Bxf2 {[%emt 0:00:17]} Rxf2 {[%emt 0:00:04]} 47. Kc4 {[%emt 0:01:23]} g4 {[%emt 0:00:32]} 48. Kxc5 {[%emt 0:00:43]} g3 {[%emt 0:00:12]} 0-1

[Event "ONJK-B 2019"]
[Site "Borne"]
[Date "2019.08.05"]
[Round "1.7"]
[White "Van Weerden, Jur"]
[Black "Borgelioen, Elise"]
[Result "1-0"]
[ECO "C45"]
[WhiteElo "1676"]
[BlackElo "1342"]
[Annotator "NA"]
[PlyCount "65"]
[EventDate "2019.08.05"]
[EventType "swiss"]
[EventCountry "NED"]
[SourceTitle "playchess.com"]
[Source "ChessBase"]
[SourceQuality "1"]
[TimeControl "5400+30"]

1. e4 {[%emt 0:00:00]} e5 {[%emt 0:00:00]} 2. Nf3 {[%emt 0:00:00]} Nc6 {[%emt 0:00:24]} 3. d4 {[%emt 0:00:00]} exd4 {[%emt 0:00:19]} 4. Nxd4 {[%emt 0:00:00]} d6 {[%emt 0:00:28]} 5. g3 {[%emt 0:01:32]} Nf6 {[%emt 0:00:55]} 6. Bg2 {[%emt 0:00:51]} Bd7 {[%emt 0:00:34]} 7. O-O {[%emt 0:00:14]} Be7 {[%emt 0:00:27]} 8. Nc3 {[%emt 0:00:16]} O-O {[%emt 0:00:23]} 9. Bf4 {[%emt 0:01:51]} Re8 {[%emt 0:01:24]} 10. Re1 {[%emt 0:00:27]} Bf8 {[%emt 0:03:31]} 11. Bg5 {[%emt 0:04:34]} Be7 {[%emt 0:02:45]} 12. Nf3 {[%emt 0:03:56]} h6 {[%emt 0:01:07]} 13. Bf4 {[%emt 0:02:10]} Qc8 {[%emt 0:04:36]} 14. Nd5 {[%emt 0:04:14]} Nxd5 {[%emt 0:04:39]} 15. exd5 {[%emt 0:00:45]} Nd8 {[%emt 0:01:13]} 16. Qd2 {[%emt 0:02:19]} f6 {[%emt 0:06:01]} 17. Re2 {[%emt 0:01:04]} Nf7 {[%emt 0:03:12]} 18. Rae1 {[%emt 0:01:45]} Bf8 {[%emt 0:01:01]} 19. Rxe8 {[%emt 0:04:37]} Bxe8 {[%emt 0:00:47]} 20. Nd4 {[%emt 0:00:27]} Bd7 {[%emt 0:05:05]} 21. Ne6 {[%emt 0:03:50]} a6 {[%emt 0:03:57]} 22. Qd3 {[%emt 0:05:07]} Nh8 {[%emt 0:04:07]} 23. Re4 {[%emt 0:07:17]} Ng6 {[%emt 0:04:48]} 24. Rc4 {[%emt 0:05:55]} Ne5 {[%emt 0:05:40]} 25. Bxe5 {[%emt 0:01:09]} Bxe6 {[%emt 0:01:26]} 26. dxe6 {[%emt 0:02:50]} dxe5 {[%emt 0:00:38]} 27. Qf5 {[%emt 0:05:08]} Bd6 {[%emt 0:02:39]} 28. Be4 {[%emt 0:01:17]} Kf8 {[%emt 0:01:17]} 29. Bd5 {[%emt 0:05:53]} Ke7 {[%emt 0:03:09]} 30. Rg4 {[%emt 0:01:14]} Qh8 {[%emt 0:01:59]} 31. Qg6 {[%emt 0:00:58]} Kd8 {[%emt 0:02:04]} 32. Qf7 {[%emt 0:01:37]} Qe8 {[%emt 0:00:37]} 33. Rxg7 {[%emt 0:00:15]} 1-0

[Event "ONJK-B 2019"]
[Site "Borne"]
[Date "2019.08.05"]
[Round "1.8"]
[White "Van Borren, Matthijs"]
[Black "De Putter, Nina"]
[Result "0-1"]
[ECO "B01"]
[WhiteElo "1339"]
[BlackElo "1631"]
[Annotator "NA"]
[PlyCount "40"]
[EventDate "2019.08.05"]
[EventType "swiss"]
[EventCountry "NED"]
[SourceTitle "playchess.com"]
[Source "ChessBase"]
[SourceQuality "1"]
[TimeControl "5400+30"]

1. e4 {[%emt 0:00:00]} d5 {[%emt 0:00:00]} 2. d4 {[%emt 0:00:00]} Nf6 {[%emt 0:00:33]} 3. exd5 {[%emt 0:02:39]} Nxd5 {[%emt 0:00:24]} 4. c4 {[%emt 0:02:25]} Nb6 {[%emt 0:00:58]} 5. Nf3 {[%emt 0:03:30]} g6 {[%emt 0:00:35]} 6. Be3 {[%emt 0:02:00]} Bg7 {[%emt 0:00:26]} 7. Qd2 {[%emt 0:02:00]} O-O {[%emt 0:01:08]} 8. Nc3 {[%emt 0:04:21]} Nc6 {[%emt 0:03:28]} 9. Rd1 {[%emt 0:02:06]} Bf5 {[%emt 0:01:06]} 10. h4 {[%emt 0:02:40]} Nb4 {[%emt 0:01:20]} 11. Rc1 {[%emt 0:03:23]} Re8 {[%emt 0:09:21]} 12. h5 {[%emt 0:02:43]} e5 {[%emt 0:19:26]} 13. hxg6 {[%emt 0:06:44]} fxg6 {[%emt 0:01:39]} 14. d5 {[%emt 0:04:08]} e4 {[%emt 0:16:00]} 15. Nd4 {[%emt 0:11:11]} Qf6 {[%emt 0:07:50]} 16. b3 {[%emt 0:05:24]} Rad8 {[%emt 0:06:57]} 17. Ndb5 {[%emt 0:07:45]} c6 {[%emt 0:02:20]} 18. Bg5 {[%emt 0:06:25]} e3 {[%emt 0:02:00]} 19. Bxf6 {[%emt 0:03:48]} exd2+ {[%emt 0:00:33]} 20. Kxd2 {[%emt 0:00:23]} Bxf6 {[%emt 0:00:28]} 0-1

[Event "ONJK-B 2019"]
[Site "Borne"]
[Date "2019.08.05"]
[Round "1.9"]
[White "Molanus, Lennart"]
[Black "Pol, Florian"]
[Result "1-0"]
[ECO "A30"]
[WhiteElo "1619"]
[BlackElo "1334"]
[Annotator "NA"]
[PlyCount "39"]
[EventDate "2019.08.05"]
[EventType "swiss"]
[EventCountry "NED"]
[SourceTitle "playchess.com"]
[Source "ChessBase"]
[SourceQuality "1"]
[TimeControl "5400+30"]

1. d4 {[%emt 0:00:00]} Nf6 {[%emt 0:00:00]} 2. c4 {[%emt 0:00:00]} e6 {[%emt 0:00:00]} 3. Nf3 {[%emt 0:00:00]} b6 {[%emt 0:00:15]} 4. g3 {[%emt 0:00:00]} Bb7 {[%emt 0:00:19]} 5. Bg2 {[%emt 0:00:00]} c5 {[%emt 0:00:32]} 6. e3 {[%emt 0:07:08]} Be7 {[%emt 0:00:46]} 7. O-O {[%emt 0:00:12]} O-O {[%emt 0:00:06]} 8. Nc3 {[%emt 0:00:33]} cxd4 {[%emt 0:02:09]} 9. exd4 {[%emt 0:00:51]} d5 {[%emt 0:01:03]} 10. Ne5 {[%emt 0:06:39]} Nbd7 {[%emt 0:00:21]} 11. b3 {[%emt 0:05:59]} Qc7 {[%emt 0:00:46]} 12. Bf4 {[%emt 0:03:55]} Bd6 {[%emt 0:01:59]} 13. Re1 {[%emt 0:02:12]} Bb4 {[%emt 0:06:39]} 14. Rc1 {[%emt 0:07:03]} Rad8 {[%emt 0:06:08]} 15. Ng6 {[%emt 0:08:39]} Qc8 {[%emt 0:01:22]} 16. Nxf8 {[%emt 0:00:07]} Nxf8 {[%emt 0:01:08]} 17. Re3 {[%emt 0:05:40]} Rd7 {[%emt 0:01:03]} 18. cxd5 {[%emt 0:01:27]} exd5 {[%emt 0:03:10]} 19. Nxd5 {[%emt 0:03:05]} Qxc1 {[%emt 0:00:39]} 20. Nxf6+ {[%emt 0:00:22] Qc5} 1-0

[Event "ONJK-B 2019"]
[Site "Borne"]
[Date "2019.08.05"]
[Round "1.10"]
[White "Wiggers, Yannick"]
[Black "Ekker, Laurens"]
[Result "0-1"]
[ECO "C45"]
[WhiteElo "1331"]
[BlackElo "1614"]
[Annotator "NA"]
[PlyCount "64"]
[EventDate "2019.08.05"]
[EventType "swiss"]
[EventCountry "NED"]
[SourceTitle "playchess.com"]
[Source "ChessBase"]
[SourceQuality "1"]
[TimeControl "5400+30"]

1. e4 {[%emt 0:00:00]} e5 {[%emt 0:00:00]} 2. Nf3 {[%emt 0:00:00]} Nc6 {[%emt 0:00:00]} 3. d4 {[%emt 0:00:00]} exd4 {[%emt 0:00:00]} 4. Nxd4 {[%emt 0:00:00]} Bc5 {[%emt 0:00:00]} 5. Be3 {[%emt 0:00:00]} Qf6 {[%emt 0:00:00]} 6. c3 {[%emt 0:00:00]} Nge7 {[%emt 0:00:05]} 7. Bc4 {[%emt 0:00:25]} Ne5 {[%emt 0:00:09]} 8. Bb3 {[%emt 0:01:50]} d6 {[%emt 0:01:13]} 9. f3 {[%emt 0:08:51]} O-O {[%emt 0:02:18]} 10. O-O {[%emt 0:19:37]} c6 {[%emt 0:05:06]} 11. Qd2 {[%emt 0:18:03]} d5 {[%emt 0:03:25]} 12. exd5 {[%emt 0:06:00]} Nxd5 {[%emt 0:02:04]} 13. Bxd5 {[%emt 0:11:51]} cxd5 {[%emt 0:00:17]} 14. b3 {[%emt 0:02:28]} Re8 {[%emt 0:06:34]} 15. Re1 {[%emt 0:05:16]} Qg6 {[%emt 0:07:18]} 16. Kh1 {[%emt 0:04:04]} Bd7 {[%emt 0:08:24]} 17. Qc2 {[%emt 0:04:49]} Qxc2 {[%emt 0:15:27]} 18. Nxc2 {[%emt 0:00:08]} Nd3 {[%emt 0:01:34]} 19. Re2 {[%emt 0:02:12]} Re6 {[%emt 0:04:40]} 20. Rd2 {[%emt 0:05:57]} Bxe3 {[%emt 0:07:03]} 21. Rxd3 {[%emt 0:00:12]} Rae8 {[%emt 0:04:45]} 22. Rxd5 {[%emt 0:03:25]} Bc1 {[%emt 0:00:22]} 23. Rd1 {[%emt 0:01:30]} Bb2 {[%emt 0:00:30]} 24. Kg1 {[%emt 0:00:52]} Bxa1 {[%emt 0:00:15]} 25. Rxd7 {[%emt 0:00:12]} Re2 {[%emt 0:04:27]} 26. Nba3 {[%emt 0:03:03]} Bxc3 {[%emt 0:02:50]} 27. Rxb7 {[%emt 0:00:14]} a5 {[%emt 0:01:27]} 28. Rc7 {[%emt 0:00:42]} Bb4 {[%emt 0:00:38]} 29. Nb5 {[%emt 0:00:54]} g6 {[%emt 0:02:02]} 30. a3 {[%emt 0:00:19]} Bf8 {[%emt 0:05:18]} 31. Nbd4 {[%emt 0:00:28]} Rd2 {[%emt 0:01:36]} 32. Ra7 {[%emt 0:00:16]} Bc5 {[%emt 0:00:59]} 0-1